{"text_format":"1","workbook":"xlsx","n_sheets":3,"sheets":["MOVIMENTAÇÃO","DADOS","Plan3"],"not_rendered":{"charts":0,"images":0,"macros":0,"external_links":0,"defined_names":0,"comments":0,"pivot_tables":0},"unopened":[],"bounds":{"document_bytes":16777216,"sheet_cells":100000,"rows_first":2000,"rows_last":500,"rows_between":2000,"halvings":0,"cell_chars":16384,"cell_head_chars":4096},"cells_cut":0,"cells_raw":0,"read":"whole","date_system":"1900"}

{"sheet":"MOVIMENTAÇÃO","index":0,"n_rows":13,"n_cols":8,"rows_kept":13,"cut":false,"hidden":false,"merged":[]}
["CÓDIGO","DESCRIÇÃO","VAL1","VAL2","RESULTADO"]
[1,{"$f":"IF(ISERROR(INDEX(DADOS!$B:$B,MATCH($A2,DADOS!$A:$A,0))),\"0\",INDEX(DADOS!$B:$B,MATCH($A2,DADOS!$A:$A,0)))","v":"BANANA"},67,88,{"$f":"IF(AND(ISNUMBER([VAL2]),ISNUMBER([VAL1])),[VAL2]-[VAL1],\"\")","v":21}]
[1,{"$f":"IF(ISERROR(INDEX(DADOS!$B:$B,MATCH($A3,DADOS!$A:$A,0))),\"0\",INDEX(DADOS!$B:$B,MATCH($A3,DADOS!$A:$A,0)))","v":"BANANA"},{"$f":"IF($D2>0,$D2,IF($D3<=0,\"\"))","v":88},125,{"$f":"IF(AND(ISNUMBER([VAL2]),ISNUMBER([VAL1])),[VAL2]-[VAL1],\"\")","v":37}]
[1,{"$f":"IF(ISERROR(INDEX(DADOS!$B:$B,MATCH($A4,DADOS!$A:$A,0))),\"0\",INDEX(DADOS!$B:$B,MATCH($A4,DADOS!$A:$A,0)))","v":"BANANA"},125,267,{"$f":"IF(AND(ISNUMBER([VAL2]),ISNUMBER([VAL1])),[VAL2]-[VAL1],\"\")","v":142}]
[1,{"$f":"IF(ISERROR(INDEX(DADOS!$B:$B,MATCH($A5,DADOS!$A:$A,0))),\"0\",INDEX(DADOS!$B:$B,MATCH($A5,DADOS!$A:$A,0)))","v":"BANANA"},267,null,{"$f":"IF(AND(ISNUMBER([VAL2]),ISNUMBER([VAL1])),[VAL2]-[VAL1],\"\")","v":""},null,null,"Exemplo"]
[null,{"$f":"IF(ISERROR(INDEX(DADOS!$B:$B,MATCH($A6,DADOS!$A:$A,0))),\"0\",INDEX(DADOS!$B:$B,MATCH($A6,DADOS!$A:$A,0)))","v":"0"},"",null,{"$f":"IF(AND(ISNUMBER([VAL2]),ISNUMBER([VAL1])),[VAL2]-[VAL1],\"\")","v":""},null,null,"Coluna (A) digito o código"]
[null,{"$f":"IF(ISERROR(INDEX(DADOS!$B:$B,MATCH($A7,DADOS!$A:$A,0))),\"0\",INDEX(DADOS!$B:$B,MATCH($A7,DADOS!$A:$A,0)))","v":"0"},"",null,{"$f":"IF(AND(ISNUMBER([VAL2]),ISNUMBER([VAL1])),[VAL2]-[VAL1],\"\")","v":""},null,null,"Coluna (B) tenho a descrição"]
[null,{"$f":"IF(ISERROR(INDEX(DADOS!$B:$B,MATCH($A8,DADOS!$A:$A,0))),\"0\",INDEX(DADOS!$B:$B,MATCH($A8,DADOS!$A:$A,0)))","v":"0"},"",null,{"$f":"IF(AND(ISNUMBER([VAL2]),ISNUMBER([VAL1])),[VAL2]-[VAL1],\"\")","v":""},null,null,"Columa \"C\" terá o iniciante que é o mesmo da coluna (D) cajo este valor seja encontrado na coluna."]
[null,{"$f":"IF(ISERROR(INDEX(DADOS!$B:$B,MATCH($A9,DADOS!$A:$A,0))),\"0\",INDEX(DADOS!$B:$B,MATCH($A9,DADOS!$A:$A,0)))","v":"0"},"",null,{"$f":"IF(AND(ISNUMBER([VAL2]),ISNUMBER([VAL1])),[VAL2]-[VAL1],\"\")","v":""},null,null,"Assim por diante com totos os código."]
[null,{"$f":"IF(ISERROR(INDEX(DADOS!$B:$B,MATCH($A10,DADOS!$A:$A,0))),\"0\",INDEX(DADOS!$B:$B,MATCH($A10,DADOS!$A:$A,0)))","v":"0"},{"$f":"IF($D9>0,$D9,IF($D10<=0,\"\"))","v":""},null,{"$f":"IF(AND(ISNUMBER([VAL2]),ISNUMBER([VAL1])),[VAL2]-[VAL1],\"\")","v":""},null,null,"No exemplo ao lado descrevi apenas um produto."]
[]
[]
[null,null,null,null,null,null,null,"Obrigado."]

{"sheet":"DADOS","index":1,"n_rows":7,"n_cols":2,"rows_kept":7,"cut":false,"hidden":false,"merged":[]}
["NÚMERO","NOME"]
[1,"BANANA"]
[2,"LARANJA"]
[3,"TANGERINA"]
[4,"LIMÃO"]
[5,"MAÇÃ"]
[6,"PÊRA"]

{"sheet":"Plan3","index":2,"n_rows":0,"n_cols":0,"rows_kept":0,"cut":false,"hidden":false,"merged":[]}